Cogmind - Beta 14 @@@ ROGUE MODE // 2024.08.18 @ 23:23:19 Player: Tim Result: Destroyed self with Grenade Launcher Performance ------------- Evolutions (0) 0 Regions Visited (2) 400 Robots Destroyed (22) 110 Value Destroyed (332) 332 Prototype IDs (2) 40 Alien Tech Used (0) 0 Bonus (0) 0 TOTAL SCORE: 882 Bonus ------- None Cogmind --------- Core Integrity 0/250 Matter 121/300 Energy 265/265 System Corruption 0% Temperature Cool (1) Movement Treading (240) Ox1 Location -10/Mines Parts ------- > --- POWER (1) -------- Improved Ion Engine > --- PROPULSION (2) --- Light Treads Aluminum Leg > --- UTILITY (2) ------ Medium Storage Unit Sensor Array > --- WEAPON (2) ------- Assault Rifle Grenade Launcher > --- INVENTORY (10) --- Medium Storage Unit Large Storage Unit Peak State ------------ > --- POWER ------------ Improved Ion Engine > --- PROPULSION ------- Aluminum Leg Aluminum Leg > --- UTILITY ---------- Medium Storage Unit Backup Plating I > --- WEAPON ----------- Light Assault Rifle Light Assault Rifle > --- INVENTORY -------- Improved Ion Engine Light Treads Aluminum Leg Small Storage Unit Large Storage Unit Sensor Array Light Armor Plating Assault Rifle Grenade Launcher [Rating: 9] Favorites ----------- Power Improved Ion Engine Engine Improved Ion Engine Propulsion Aluminum Leg Treads Light Treads Leg Aluminum Leg Utility Small Storage Unit Device Sensor Array Storage Small Storage Unit Protection Backup Plating I Weapon Light Assault Rifle Ballistic Gun Light Assault Rifle Launcher Grenade Launcher Build | -11 -10 -10 ------- Run | Yrd Mat Min Slots Evolved . | . . . Power . | . . . Propulsion . | . . . Utility . | . . . Weapon . | . . . Parts Attached 38 | 8 20 10 Power 4 | 1 2 1 Engine 4 | 1 2 1 Core . | . . . Reactor . | . . . Propulsion 9 | 2 2 5 Treads 1 | . . 1 Leg 8 | 2 2 4 Wheel . | . . . Hover . | . . . Flight . | . . . Utility 10 | 1 7 2 Device 1 | . . 1 Storage 4 | 1 3 . Processor . | . . . Hackware . | . . . Protection 5 | . 4 1 Artifact . | . . . Weapon 15 | 4 9 2 Energy Gun . | . . . Energy Cannon . | . . . Ballistic Gun 11 | 4 6 1 Ballistic Cannon . | . . . Launcher 4 | . 3 1 Special Weapon . | . . . Impact Weapon . | . . . Slashing Weapon . | . . . Piercing Weapon . | . . . Special Melee Weapon . | . . . Unidentified Prototypes . | . . . Parts Lost 7 | . . 7 Power 1 | . . 1 Propulsion 2 | . . 2 Utility 2 | . . 2 Weapon 2 | . . 2 Highest Loss Streak 7 | . . 7 To Critical Strikes . | . . . Average Slot Usage (%) 98 | . 98 98 Engine 14 | . 14 14 Treads 1 | . . 4 Leg 25 | . 28 22 Device 1 | . . 4 Storage 18 | . 22 14 Protection 6 | . 4 9 Ballistic Gun 24 | . 24 23 Launcher 3 | . 3 4 Peak Build Rating 9 | 6 9 9 Average Rating 7 | 5 7 8 On Entrance 5 | . 6 9 Naked Turns . | . . . Heaviest Build 25 | 13 25 23 Greatest Support 20 | 20 20 20 Greatest Overweight (x) 6 | 4 2 6 Average Overweight (x) . | 1 . 1 Largest Inventory Capacity 10 | 8 10 10 Average Capacity 8 | 7 8 10 Most Carried 10 | 6 10 10 Average Carried 7 | 2 7 7 Final Capacity 10 | 8 10 10 Final Carried 10 | 6 10 2 Class Distribution -------------------- 100% | Mutant Dominant Class ---------------- Mutant | -10/Materials Mutant | -10/Mines Resources | -11 -10 -10 ----------- Run | Yrd Mat Min Matter Collected 574 | 246 235 93 Remotely . | . . . Salvage Created 423 | . 321 102 Parts 49 | . 41 8 Haulers Intercepted 1 | . 1 . Recyclers Shooed . | . . . Parts Field Recycled . | . . . Retrieved Matter . | . . . Parts Self-Destructed . | . . . Prevented . | . . . Kills | -11 -10 -10 ------- Run | Yrd Mat Min Combat Hostiles Destroyed 16 | . 10 6 Guns 12 | . 8 4 AOE 4 | . 2 2 Classes Destroyed 8 | . 6 2 Worker 2 | . 2 . Builder 3 | . 3 . Hauler 1 | . 1 . Watcher 2 | . 2 . Swarmer 11 | . 8 3 Grunt 2 | . 2 . Demolisher 1 | . . 1 Assembled 2 | . . 2 Best Kill Streak 6 | . 6 3 Combat Bots Only 3 | . 3 3 Max Kills in Single Turn 3 | . 3 1 Gunslinging . | . . . Exploded 1 | . 1 1 Melee . | . . . Uniques/NPCs Destroyed . | . . . Combat | -11 -10 -10 -------- Run | Yrd Mat Min Hostile Shots Fired 79 | . 37 42 Missed 13 | . 8 5 Damage Taken 1065 | . 330 735 Core 264 | . 48 216 Absorbed by Shields . | . . . Core Remaining (%) 100 | 100 . . Volleys Fired 65 | . 40 25 Largest 2 | . 2 2 Hottest 40 | . 40 40 Shots Fired 115 | . 71 44 Gun 105 | . 64 41 Cannon . | . . . Launcher 10 | . 7 3 Special . | . . . Kinetic 105 | . 64 41 Thermal . | . . . Explosive 10 | . 7 3 Electromagnetic . | . . . Robot Hit Streak 6 | . 6 5 Robot Miss Streak 4 | . 2 4 Penetration Max . | . . . Secondary Targets 1 | . 1 . Max Gunslinging Chain 1 | . 1 . Shots Hit Robots 64 | . 39 25 Core Hits 42 | . 30 12 Critical Kills . | . . . Critical Parts Destroyed . | . . . Critical Strikes . | . . . Melee Attacks . | . . . Impact . | . . . Slashing . | . . . Piercing . | . . . Sneak Attacks . | . . . Combat Hostiles . | . . . Follow-up Attacks . | . . . Damage Inflicted 1120 | . 736 384 Guns 526 | . 324 202 Cannons . | . . . Explosions 578 | . 403 175 Melee . | . . . Ramming 16 | . 9 7 Kinetic 526 | . 324 202 Thermal . | . . . Explosive 578 | . 403 175 Electromagnetic . | . . . Impact . | . . . Slashing . | . . . Piercing . | . . . Highest Corruption . | . . . Average Corruption . | . . . Corruption Purged . | . . . Corruption Blocked . | . . . Overload Shots . | . . . Overflow Damage . | . . . Projectiles . | . . . Explosions . | . . . Melee . | . . . Knockbacks . | . . . Impact . | . . . Kinetic . | . . . Secondary . | . . . Self-Inflicted Damage 65 | . 27 38 Shots 2 | . 1 1 Rammed . | . . . Targets Rammed 3 | . 2 1 Kicked 3 | . 2 1 Crushed . | . . . Highest Temperature 12 | . 12 8 Average Temperature 4 | . 6 4 Received Heat Transfer 68 | . 48 20 Siege Activations . | . . . Robots Corrupted . | . . . Combat Hostiles . | . . . Parts Fried . | . . . Impact Corruptions . | . . . Robots Melted . | . . . Combat Hostiles . | . . . Parts Melted . | . . . Heat Transferred . | . . . Parts Sabotaged . | . . . Parts Stolen . | . . . Parts Stripped . | . . . Power Chain Reactions . | . . . Alert | -11 -10 -10 ------- Run | Yrd Mat Min Peak Influence 318 | . 318 198 Initial 123 | . . 123 Average 142 | . 173 130 Maximum Alert Level 1 | . 1 . Low Security (%) 74 | 100 51 100 Level 1 25 | . 48 . Level 2 . | . . . Level 3 . | . . . Level 4 . | . . . Level 5 . | . . . High Security . | . . . Max Security . | . . . Squads Dispatched 1 | . 1 . Investigation . | . . . Extermination . | . . . Reinforcement 1 | . 1 . Assault . | . . . Garrison . | . . . Intercept . | . . . Searches Triggered . | . . . Construction Impeded . | . . . Haulers Reinforced . | . . . Active Scanning Responses . | . . . Cargo Convoy Interrupts . | . . . Stealth | -11 -10 -10 --------- Run | Yrd Mat Min Distress Signals 2 | . 2 . Communications Jammed . | . . . Distress Signals . | . . . Times Spotted 29 | . 19 10 Peak Tracking Total 7 | . 7 5 Tactical Retreats 2 | . 2 . Traps | -11 -10 -10 ------- Run | Yrd Mat Min Traps Triggered 2 | . 2 . Indirectly . | . . . Trap Hack Attempts . | . . . Triggered . | . . . Disarmed . | . . . Reprogrammed . | . . . Reused . | . . . Traps Extracted . | . . . Installed . | . . . Triggered . | . . . Machines | -11 -10 -10 ---------- Run | Yrd Mat Min Machines Disabled 5 | . 5 . Max in Single Turn 2 | . 2 . Machines Repaired . | . . . Machines Dismantled . | . . . Machines Sabotaged . | . . . Overloaded Fab Kills . | . . . Hacking | -11 -10 -10 --------- Run | Yrd Mat Min Machines Accessed 4 | . 4 . Terminals 4 | . 4 . Fabricators . | . . . Repair Stations . | . . . Recycling Units . | . . . Scanalyzers . | . . . Garrison Access . | . . . Total Hacks 10 | . 10 . Successful 4 | . 4 . Failed 6 | . 6 . Catastrophic 2 | . 2 . Database Lockouts . | . . . Manual 6 | . 6 . Terminals 10 | . 10 . Fabricators . | . . . Repair Stations . | . . . Recycling Units . | . . . Scanalyzers . | . . . Garrison Access . | . . . Terminal Hacks 4 | . 4 . Robot Analysis 1 | . 1 . Prototype ID Bank 1 | . 1 . Zone Layout 2 | . 2 . Fabricator Hacks . | . . . Repair Station Hacks . | . . . Recycling Unit Hacks . | . . . Scanalyzer . | . . . Garrison Access Hacks . | . . . Unauthorized Hacks . | . . . Terminals . | . . . Fabricators . | . . . Repair Stations . | . . . Recycling Units . | . . . Scanalyzers . | . . . Garrison Access . | . . . Data Cores Recovered . | . . . Used . | . . . Hacking Detections 4 | . 4 . Full Trace Events . | . . . Feedback Events . | . . . Feedback Blocked . | . . . Robot Schematics Acquired . | . . . Robots Built . | . . . Authchips . | . . . Time . | . . . Total Robot Build Rating . | . . . Part Schematics Acquired . | . . . Parts Built . | . . . Authchips . | . . . Time . | . . . Total Part Build Rating . | . . . Parts Repaired . | . . . Time . | . . . Parts Recycled . | . . . Recycled Matter . | . . . Retrieved Matter . | . . . Retrieved Components . | . . . Parts Scanalyzed . | . . . Part Schematics Acquired . | . . . Parts Damaged . | . . . Bothacking | -11 -10 -10 ------------ Run | Yrd Mat Min Used RIF Installer . | . . . Robots Hacked . | . . . Non-combat . | . . . Combat . | . . . Robot Hacks Applied . | . . . Relay Couplers Released . | . . . Fabnet Peak Effective % . | . . . Robots Rewired . | . . . Allies Hacked . | . . . Hacks Repelled . | . . . Allies | -11 -10 -10 -------- Run | Yrd Mat Min Total Allies . | . . . Largest Group . | . . . Highest-Rated Group . | . . . Highest-Rated Ally . | . . . Total Orders . | . . . Ally Attacks . | . . . Total Damage . | . . . Kills . | . . . Allies Corrupted . | . . . Allies Melted . | . . . Intel | -11 -10 -10 ------- Run | Yrd Mat Min Robot Analysis Total 1 | . 1 . Derelict Logs Recovered 1 | . . 1 Drone Launches . | . . . Drone Recoveries . | . . . Exploration | -11 -10 -10 ------------- Run | Yrd Mat Min Turns Passed 1454 | 119 779 556 Spaces Moved 740 | 62 483 195 Core 73 | 24 . 49 Treads 64 | . . 64 Legs 603 | 38 483 82 Wheels . | . . . Hover . | . . . Flight . | . . . Fastest Speed 50 | 50 120 120 Average Speed 156 | 152 127 227 Slowest Speed 350 | 250 260 350 Overloaded Moves . | . . . Propulsion Burnouts . | . . . Robots Hopped . | . . . Cave-ins Triggered . | . . . Exploration Rate (%) 25 | 5 49 23 Regions Visited 2 Branch Regions 1 Pre-discovered Areas . | . . . Known Exits Taken . | . . . Unknown Exits Taken 2 | 1 1 . Scrap Searched . | . . . Spaces Dug . | . . . Terrain Destroyed 95 | . 74 21 Melee . | . . . Projectile . | . . . AOE 95 | . 74 21 Terrain Rammed . | . . . Walls Destroyed . | . . . Machines Disabled . | . . . Actions | -11 -10 -10 --------- Run | Yrd Mat Min Total 944 | 82 590 272 Wait 50 | 8 20 22 Move 738 | 61 482 195 Hop . | . . . Pick Up 17 | 5 12 . Fast Attach 10 | 6 4 . Attach 8 | . 1 7 Detach . | . . . Swap 20 | 2 15 3 Drop 17 | . 14 3 Fire 65 | . 40 25 Melee . | . . . Ram . | . . . Kick 3 | . 2 1 Crush . | . . . Escape Stasis . | . . . Rewire 16 | . . 16 Trap . | . . . Miscellaneous . | . . . Route ------- -11/Scrapyard -10/Materials (discovered 2 exits: [*Mat] / [*Min]) -10/Mines (discovered 1 exit: [*Mat]) History --------- Turn | Location | Event 10 | -11/Scrapyard | Discovered new exit (range 16) 120 | -11/Scrapyard | Entered Materials 304 | -10/Materials | Build established: Mutant 507 | -10/Materials | Discovered new exit (range 4) 779 | -10/Materials | Discovered new exit (range 9) 899 | -10/Materials | Entered Mines 967 | -10/Mines | Discovered new exit (range 9) 1148 | -10/Mines | Learned Materials emergency access door positions 1224 | -10/Mines | Assembled infested the area 1229 | -10/Mines | Assisted by a Guerilla fighting off Assembled 1262 | -10/Mines | Core integrity fell below 50% 1298 | -10/Mines | Lost 7 parts (1p2n2u2w) 1449 | -10/Mines | Core integrity fell below 20% 1455 | -10/Mines | Destroyed self with Grenade Launcher Last Messages --------------- 01267_ Lgt. Armor Plating destroyed. 01267_ D-53 Grenadier destroyed. 01268_ The unstable cave ceiling collapses. 01268_ K-01 Serf collects debris. 01269_ The unstable cave ceiling collapses. 01272_ Dropped Sml. Storage Unit. 01272_ K-01 Serf collects debris. 01276_ The unstable cave ceiling collapses. 01278_ K-01 Serf collects debris. 01280_ The unstable cave ceiling collapses. 01282_ K-01 Serf collects debris. 01283_ The unstable cave ceiling collapses. 01285_ K-01 Serf collects debris. 01287_ The unstable cave ceiling collapses. 01293_ U-05 Engineer lays Concrete. 01295_ The unstable cave ceiling collapses. 01296_ U-05 Engineer builds a Wall. 01450_ as-48763 destroyed. 01455_ The unstable cave ceiling collapses. 01455_ as-19201 destroyed. Map ----- +----------------------------------------------------+ | ?????????????????????????????????????????????????? | | ?????????????????????????????????????????????????? | | ?????????????????????????????????????????????????? | | ?????????????????????????????????????????????????? | | ?????????????????????????????????????????????????? | | ?????????????????????????????????????????????????? | | ?????????????????????????????????????????????????? | | ?????????????????????????????????????????????????? | | ?????????????????????????????????????????????????? | | ?????????????????????????????????????????????????? | | ?????????????????????????????????????????????????? | | ?????????????????????????????????????????????????? | | ?????????????????????????????????????????????????? | | ??????# #####???????????????????????????????????? | | ??????# #??????????????##### #??????????????? | | ??????# ### #??????????????# #??????????????? | | ???????????# #??????????????# #####??????????????? | | ???????????# #??????????????#?#??????????????????? | | ???????????# #??????????????# #??????????????????? | | ???????????# #????????????### ###????????????????? | | ???????????# #???????????## # ##???????????????? | | ???????????# #??????????## #####???????????? | | ???????????# #??????????# ## # # # ##??????????? | | ???????????# ############ # ### |##########?? | | ???????????# # ! !=%!! #?? | | ???????????##############@ =% = !=**% #?# | | ????????????????????????#%a! a% != ######## ### | | ????????????????????????# = # | #??????# ## | | ????????????????????????#a# #??????# ## | | ????????????????????????# ## ### ##??????# ##! | | ????????????????????????# #??###?####???????# ## | | ????????????????????????# #?????????????????# # | | ????????????????????????# #????????????????## | | ???????????????????????? #????????????????# | | ???????????????????????? ????????????????# ## | | ???????????????????????? #????????????????## ### | | ???????????????????????? ??????????????????####?# | | ???????????????????????? #???????????????????????# | | ???????????????????????? ????????????????????????# | | ???????????????????????? ????????????????????????# | | ???????????????????????? ????????????????????????# | | ???????????????????????? ????????????????????????# | | ?????????????????????????????????????????????????# | | ?????????????????????????????????????????????????# | | ?????????????????????????????????????????????????# | | ?????????????????????????????????????????????????# | | ?????????????????????????????????????????????????? | | ?????????????????????????????????????????????????? | | ?????????????????????????????????????????????????? | | ?????????????????????????????????????????????????? | +----------------------------------------------------+ Best States ------------- Heat Dissipation 25 Energy Generation 12 Energy Capacity 265 Matter Stores 373 Matter Capacity 450 Sight Range 16 Robot Scan Range 14 Terrain Scan Density 10 Armor Coverage 150 Evasion (%) 55 Recoil Reduction 1 Item Schematics ----------------- None Robot Schematics ------------------ None Fabricated ------------ Nothing Alien Tech Used ----------------- None Achievements -------------- None Challenges ------------ None Game ------ Seed NeutrinoDecoderScrapsphere Manual? 0 Play Time 00:22:25 Cumulative 20.5 hours Start 2024.08.18 @ 23:02:24 End 2024.08.18 @ 23:23:19 Sessions 1 Manual Loads 0 Difficulty Rogue Special Mode None Game No. 42 Rogue 42 Adventurer 0 Explorer 0 Win Type - Total 0 Types 0/0/0/0/0/0/0/0/0 Lore% 11 Gallery% 15 Achievement% 13 Wizard Run 0 Options --------- Layout 0 ASCII 0 Keyboard 0 Movement Numpad Keybinds 0 Fullscreen 2 Font 24/Smallcaps Map View 113x50 Zoom Use 0% Tactical HUD 1 Map Filters NONE Filters NONE Steam 1 RUN: 694bbe8f-5e5a-4e2a-8243-c110e88301c9